{"text_format":"2","workbook":"xlsx","n_sheets":2,"sheets":["Viet","App-Dev"],"not_rendered":{"charts":0,"images":0,"macros":0,"external_links":0,"defined_names":0,"comments":0,"pivot_tables":0},"unopened":[],"bounds":{"document_bytes":16777216,"sheet_cells":100000,"run_cost":"one","rows_first":2000,"rows_last":500,"rows_between":2000,"halvings":0,"cell_chars":16384,"cell_head_chars":4096},"cells_cut":0,"cells_raw":0,"read":"whole","date_system":"1900"}

{"sheet":"Viet","index":0,"n_rows":24,"n_cols":6,"rows_kept":24,"cut":false,"hidden":false,"merged":[[1,0,1,7],[3,0,3,1]]}
[]
["Statement of Account-(2021'March)"]
[]
["  Dev Team Name : Viet Pham ",null,null,null,"Fee/Hour(USD)",9]
["Project","Ticke-Reply No","Exp Hrs","Log Hrs","Log Amt","Remarks"]
["Fitvac","http://project.dabory.com/wp-admin/admin.php?page=dbr-crm-preview&ticket_id=607&reply_id=1083#607-1083",2,2,{"$f":"$F$4*D6","v":18}]
["Fitvac","http://project.dabory.com/wp-admin/admin.php?page=dbr-crm-preview&ticket_id=604&reply_id=1079#604-1079",9,9,81]
["Fitvac","http://project.dabory.com/wp-admin/admin.php?page=dbr-crm-preview&ticket_id=594&reply_id=1072#594-1072",8,8,72]
["Fitvac","http://project.dabory.com/wp-admin/admin.php?page=dbr-crm-preview&ticket_id=573&reply_id=1060#573-1060",2,2,18]
["Fitvac","http://project.dabory.com/wp-admin/admin.php?page=dbr-crm-preview&ticket_id=572&reply_id=1055#572-1055",4,4,36]
["fitvac","http://project.dabory.com/wp-admin/admin.php?page=dbr-crm-preview&ticket_id=570&reply_id=1054#570-1054",{"$f":"6","v":6},6,54]
["Fitvac","http://project.dabory.com/wp-admin/admin.php?page=dbr-crm-preview&ticket_id=564&reply_id=1045#564-1045",10,10,90]
["Fitvac","http://project.dabory.com/wp-admin/admin.php?page=dbr-crm-preview&ticket_id=392&reply_id=835#392-835",40,40,360]
["fitvac","http://project.dabory.com/wp-admin/admin.php?page=dbr-crm-preview&ticket_id=554&reply_id=1044#554-1044",4,4,36]
["Fitvac","http://project.dabory.com/wp-admin/admin.php?page=dbr-crm-preview&ticket_id=553&reply_id=1043#553-1043",16,16,144]
["POS&ERP-Inner","http://project.dabory.com/wp-admin/admin.php?page=dbr-crm-preview&ticket_id=544",12,12,108]
["POS&ERP-Inner","http://project.dabory.com/wp-admin/admin.php?page=dbr-crm-preview&ticket_id=517&reply_id=1020#517-1020",8,8,72]
["Fitvac","http://project.dabory.com/wp-admin/admin.php?page=dbr-crm-preview&ticket_id=508&reply_id=984#508-984",1,1,9]
["POS&ERP-Inner","http://project.dabory.com/wp-admin/admin.php?page=dbr-crm-preview&ticket_id=497&reply_id=973#497-973",10,10,90]
["POS&ERP-Inner","http://project.dabory.com/wp-admin/admin.php?page=dbr-crm-preview&ticket_id=517&reply_id=1065",4,4,36]
["POS&ERP-Inner","http://project.dabory.com/wp-admin/admin.php?page=dbr-crm-preview&ticket_id=517&reply_id=1107#517-1107",4,4,36]
["POS&ERP-Inner","http://project.dabory.com/wp-admin/admin.php?page=dbr-crm-preview&ticket_id=517&reply_id=1111#517-1111",1,1,{"$f":"$F$4*D22","v":9}]
["Baeksan-SSO","http://project.dabory.com/wp-admin/admin.php?page=dbr-crm-preview&ticket_id=452&reply_id=955#452-955",0,0,0]
["subTotal",null,null,null,{"$f":"SUM(E6:E23)","v":1269}]

{"sheet":"App-Dev","index":1,"n_rows":0,"n_cols":0,"rows_kept":0,"cut":false,"hidden":false,"merged":[]}